[Event "Vezerkepzo FM Christmas 2023"]
[Site "Budapest"]
[Date "2023.12.26"]
[Round "1.1"]
[White "Anjali R. Sagar"]
[Black "Varga, Csaba Zoltan"]
[Result "0-1"]
[ECO "B00"]
[WhiteElo "1559"]
[BlackElo "2201"]
[Annotator "ChessBase"]
[PlyCount "48"]
[EventDate "2023.12.25"]
[EventType "tourn"]
[EventCountry "HUN"]
[SourceTitle "playchess.com"]
[Source "ChessBase"]
[SourceQuality "1"]
[TimeControl "40/5400+30:1800+30"]

1. e4 {[%emt 0:00:05]} Nc6 {[%emt 0:00:32]} 2. d4 {[%emt 0:00:06]} d5 {[%emt 0:00:03]} 3. e5 {[%emt 0:00:08]} f6 {[%emt 0:00:12]} 4. f4 {[%emt 0:00:22]} Nh6 {[%emt 0:00:13]} 5. Nf3 {[%emt 0:00:26]} Bg4 {[%emt 0:00:12]} 6. Be2 {[%emt 0:00:25]} Qd7 {[%emt 0:00:14]} 7. c3 {[%emt 0:00:24]} O-O-O {[%emt 0:00:09]} 8. b4 {[%emt 0:01:37]} e6 {[%emt 0:01:34]} 9. a4 {[%emt 0:01:37]} Nf5 {[%emt 0:00:26]} 10. a5 {[%emt 0:04:55]} Bxf3 {[%emt 0:02:00]} 11. Bxf3 {[%emt 0:00:32]} Nh4 {[%emt 0:00:04]} 12. b5 {[%emt 0:01:59]} Nb8 {[%emt 0:01:24]} 13. Qb3 {[%emt 0:04:17]} Nxf3+ {[%emt 0:00:29]} 14. gxf3 {[%emt 0:00:03]} fxe5 {[%emt 0:04:31]} 15. fxe5 {[%emt 0:00:48]} Qf7 {[%emt 0:00:06]} 16. Nd2 {[%emt 0:01:00]} c5 {[%emt 0:03:54]} 17. Ba3 {[%emt 0:14:01]} Qf4 {[%emt 0:02:12]} 18. Qc2 {[%emt 0:19:14]} Nd7 {[%emt 0:01:23]} 19. O-O-O {[%emt 0:05:34]} cxd4 {[%emt 0:02:01]} 20. Bxf8 {[%emt 0:00:58]} Rhxf8 {[%emt 0:00:15]} 21. cxd4+ {[%emt 0:00:30]} Kb8 {[%emt 0:00:04]} 22. Qb2 {[%emt 0:01:13]} Rc8+ {[%emt 0:02:10]} 23. Kb1 {[%emt 0:00:15]} Qf5+ {[%emt 0:00:06]} 24. Ka2 {[%emt 0:03:54]} Rc2 {[%emt 0:00:06]} 0-1

[Event "Vezerkepzo FM Christmas 2023"]
[Site "Budapest"]
[Date "2023.12.26"]
[Round "1.2"]
[White "Sagar Siya"]
[Black "Kahn, Evarth"]
[Result "1-0"]
[ECO "B78"]
[WhiteElo "1537"]
[BlackElo "1972"]
[Annotator "NA"]
[PlyCount "101"]
[EventDate "2023.12.25"]
[EventType "tourn"]
[EventCountry "HUN"]
[SourceTitle "playchess.com"]
[Source "ChessBase"]
[SourceQuality "1"]
[TimeControl "40/5400+30:1800+30"]

1. e4 {[%emt 0:00:04]} c5 {[%emt 0:02:41]} 2. Nf3 {[%emt 0:00:13]} d6 {[%emt 0:00:05]} 3. d4 {[%emt 0:00:10]} cxd4 {[%emt 0:00:05]} 4. Nxd4 {[%emt 0:00:08]} Nf6 {[%emt 0:00:04]} 5. Nc3 {[%emt 0:00:15]} g6 {[%emt 0:00:04]} 6. Be3 {[%emt 0:00:18]} Bg7 {[%emt 0:00:04]} 7. f3 {[%emt 0:00:09]} O-O {[%emt 0:00:04]} 8. Qd2 {[%emt 0:00:14]} Nc6 {[%emt 0:00:04]} 9. Bc4 {[%emt 0:00:11]} Bd7 {[%emt 0:00:11]} 10. O-O-O {[%emt 0:00:14]} Qa5 {[%emt 0:00:40]} 11. Kb1 {[%emt 0:00:53]} Rfc8 {[%emt 0:00:43]} 12. Bb3 {[%emt 0:00:15]} Ne5 {[%emt 0:00:13]} 13. h4 {[%emt 0:00:16]} Rc4 {[%emt 0:01:46]} 14. Bxc4 {[%emt 0:05:05]} Nxc4 {[%emt 0:00:03]} 15. Qd3 {[%emt 0:02:13]} Rc8 {[%emt 0:01:48]} 16. Nb3 Qb4 {[%emt 0:12:54]} 17. Bd4 {[%emt 0:09:01]} a5 {[%emt 0:19:06]} 18. a3 {[%emt 0:06:43]} Nxa3+ {[%emt 0:01:01]} 19. bxa3 {[%emt 0:00:12]} Qxa3 {[%emt 0:00:03]} 20. Na2 {[%emt 0:05:19]} Be6 {[%emt 0:04:50]} 21. Bb2 {[%emt 0:04:53]} Qa4 {[%emt 0:13:19]} 22. Nc3 {[%emt 0:07:37]} Qb4 {[%emt 0:00:39]} 23. Qb5 {[%emt 0:05:22]} Rxc3 {[%emt 0:12:38]} 24. Qxb4 {[%emt 0:00:17]} axb4 {[%emt 0:00:06]} 25. Bxc3 {[%emt 0:00:16]} bxc3 {[%emt 0:00:02]} 26. g4 {[%emt 0:04:28]} Nd7 {[%emt 0:00:50]} 27. Ka2 {[%emt 0:04:51]} Ne5 {[%emt 0:00:40]} 28. Rhf1 {[%emt 0:01:56]} Nc4 {[%emt 0:00:27]} 29. Rf2 {[%emt 0:01:41]} b5 {[%emt 0:00:57]} 30. Ra1 {[%emt 0:05:42]} Nd2 {[%emt 0:02:18]} 31. Ka3 {[%emt 0:03:20]} Bxb3 {[%emt 0:00:07]} 32. cxb3 {[%emt 0:00:14]} Bd4 {[%emt 0:00:04]} 33. Rxd2 {[%emt 0:02:32]} cxd2 {[%emt 0:05:12]} 34. Rd1 {[%emt 0:00:08]} Bc5+ {[%emt 0:00:40]} 35. Kb2 {[%emt 0:01:25]} Bb4 {[%emt 0:01:42]} 36. Kc2 {[%emt 0:00:37]} Kg7 {[%emt 0:00:09]} 37. Ra1 {[%emt 0:01:11]} e5 {[%emt 0:02:04]} 38. Ra8 {[%emt 0:01:31]} Bc3 {[%emt 0:00:59]} 39. Rd8 {[%emt 0:00:42]} Kf6 {[%emt 0:02:19]} 40. Rxd6+ {[%emt 0:00:52]} Ke7 {[%emt 0:00:01]} 41. Rb6 {[%emt 0:30:52]} b4 {[%emt 0:30:06]} 42. Rb8 {[%emt 0:01:11]} Kf6 {[%emt 0:02:28]} 43. Rg8 {[%emt 0:00:39]} h6 {[%emt 0:00:24]} 44. Kd1 {[%emt 0:00:55]} Ke6 {[%emt 0:04:02]} 45. Rh8 {[%emt 0:02:22]} Kf6 {[%emt 0:00:03]} 46. Rh7 {[%emt 0:01:44]} Bd4 {[%emt 0:02:45]} 47. Kxd2 {[%emt 0:01:00]} Bf2 {[%emt 0:00:11]} 48. h5 {[%emt 0:00:38]} Bh4 {[%emt 0:01:19]} 49. Kd3 {[%emt 0:01:53]} Kg5 {[%emt 0:00:51]} 50. Rxf7 {[%emt 0:00:44]} gxh5 {[%emt 0:00:04]} 51. Rf5+ {[%emt 0:00:14]} 1-0

[Event "Vezerkepzo FM Christmas 2023"]
[Site "Budapest"]
[Date "2023.12.26"]
[Round "1.3"]
[White "Kozma, Edit"]
[Black "Manukonda Arun"]
[Result "1-0"]
[ECO "B93"]
[WhiteElo "1754"]
[BlackElo "2085"]
[Annotator "NA"]
[PlyCount "57"]
[EventDate "2023.12.25"]
[EventType "tourn"]
[EventCountry "HUN"]
[SourceTitle "playchess.com"]
[Source "ChessBase"]
[SourceQuality "1"]
[TimeControl "40/5400+30:1800+30"]

1. e4 {[%emt 0:07:57]} c5 {[%emt 0:00:04]} 2. Nf3 {[%emt 0:00:07]} d6 {[%emt 0:00:19]} 3. d4 {[%emt 0:00:07]} cxd4 {[%emt 0:00:05]} 4. Nxd4 {[%emt 0:00:05]} Nf6 {[%emt 0:00:03]} 5. Nc3 {[%emt 0:00:07]} a6 {[%emt 0:00:05]} 6. f4 {[%emt 0:00:58]} e5 {[%emt 0:00:02]} 7. Nf3 {[%emt 0:00:20]} Nbd7 {[%emt 0:02:46]} 8. Bd3 {[%emt 0:04:50]} Be7 {[%emt 0:00:40]} 9. O-O {[%emt 0:01:49]} O-O {[%emt 0:00:07]} 10. Kh1 {[%emt 0:01:54]} b5 {[%emt 0:00:26]} 11. Qe1 {[%emt 0:10:19]} Bb7 {[%emt 0:00:10]} 12. a3 {[%emt 0:07:14]} Rc8 {[%emt 0:00:51]} 13. fxe5 {[%emt 0:10:01]} dxe5 {[%emt 0:00:22]} 14. Qg3 {[%emt 0:04:49]} Nh5 {[%emt 0:05:19]} 15. Qh3 {[%emt 0:11:52]} Nhf6 {[%emt 0:09:33]} 16. Qg3 {[%emt 0:03:09]} Re8 {[%emt 0:04:15]} 17. Nxe5 {[%emt 0:10:46]} Nxe5 {[%emt 0:02:51]} 18. Qxe5 {[%emt 0:04:46]} Bxa3 {[%emt 0:01:53]} 19. Qf5 {[%emt 0:00:44]} Rc5 {[%emt 0:01:31]} 20. Nd5 {[%emt 0:11:40]} Rxd5 {[%emt 0:12:14]} 21. exd5 {[%emt 0:00:34]} Bd6 {[%emt 0:00:35]} 22. Bg5 {[%emt 0:02:24]} Re5 {[%emt 0:07:30]} 23. Bxf6 {[%emt 0:00:20]} gxf6 {[%emt 0:00:17]} 24. Qxh7+ {[%emt 0:00:32]} Kf8 {[%emt 0:00:01]} 25. Qh8+ {[%emt 0:01:09]} Ke7 {[%emt 0:00:01]} 26. Qxf6+ {[%emt 0:01:08]} Kd7 {[%emt 0:00:01]} 27. Qxd8+ {[%emt 0:01:54]} Kxd8 {[%emt 0:00:01]} 28. Rxf7 {[%emt 0:00:25]} Bxd5 {[%emt 0:00:08]} 29. Rf5 {[%emt 0:00:34]} 1-0

[Event "Vezerkepzo FM Christmas 2023"]
[Site "Budapest"]
[Date "2023.12.27"]
[Round "2.1"]
[White "Kahn, Evarth"]
[Black "Anjali R. Sagar"]
[Result "1-0"]
[ECO "C52"]
[WhiteElo "1972"]
[BlackElo "1559"]
[Annotator "NA"]
[PlyCount "49"]
[EventDate "2023.12.25"]
[EventType "tourn"]
[EventCountry "HUN"]
[SourceTitle "playchess.com"]
[Source "ChessBase"]
[SourceQuality "1"]
[TimeControl "40/5400+30:1800+30"]

1. e4 {[%emt 0:03:25]} e5 {[%emt 0:00:09]} 2. Nf3 {[%emt 0:00:16]} Nc6 {[%emt 0:00:16]} 3. Bc4 {[%emt 0:00:06]} Bc5 {[%emt 0:00:12]} 4. b4 {[%emt 0:00:08]} Bxb4 {[%emt 0:00:25]} 5. c3 {[%emt 0:00:04]} Ba5 {[%emt 0:00:37]} 6. d4 {[%emt 0:01:01]} Qe7 {[%emt 0:05:16]} 7. O-O {[%emt 0:01:47]} Nf6 {[%emt 0:01:10]} 8. Ba3 {[%emt 0:02:27]} d6 {[%emt 0:00:20]} 9. d5 {[%emt 0:00:10]} Nd8 {[%emt 0:00:41]} 10. Qa4+ {[%emt 0:00:45]} Bd7 {[%emt 0:00:42]} 11. Qxa5 {[%emt 0:00:45]} b6 {[%emt 0:00:34]} 12. Qb4 {[%emt 0:00:27]} Nxe4 {[%emt 0:01:45]} 13. Bb5 {[%emt 0:01:24]} f5 {[%emt 0:01:50]} 14. Bxd7+ {[%emt 0:01:30]} Qxd7 {[%emt 0:00:49]} 15. Nbd2 {[%emt 0:00:09]} Nf6 {[%emt 0:01:46]} 16. c4 {[%emt 0:01:05]} O-O {[%emt 0:00:40]} 17. Nxe5 {[%emt 0:00:17]} Qe8 {[%emt 0:01:05]} 18. Rfe1 {[%emt 0:07:47]} dxe5 {[%emt 0:02:54]} 19. Rxe5 {[%emt 0:02:57]} c5 {[%emt 0:00:57]} 20. dxc6 {[%emt 0:16:03]} Qf7 {[%emt 0:01:45]} 21. Qxf8+ {[%emt 0:00:15]} Qxf8 {[%emt 0:00:23]} 22. Bxf8 {[%emt 0:00:06]} Kxf8 {[%emt 0:00:10]} 23. c7 {[%emt 0:00:38]} Nc6 {[%emt 0:00:43]} 24. Re6 {[%emt 0:01:51]} Nd4 {[%emt 0:00:18]} 25. Rd6 {[%emt 0:00:08]} 1-0

[Event "Vezerkepzo FM Christmas 2023"]
[Site "Budapest"]
[Date "2023.12.27"]
[Round "2.3"]
[White "Varga, Csaba Zoltan"]
[Black "Kozma, Edit"]
[Result "1-0"]
[ECO "A00"]
[WhiteElo "2201"]
[BlackElo "1754"]
[Annotator "ChessBase"]
[PlyCount "61"]
[EventDate "2023.12.25"]
[EventType "tourn"]
[EventCountry "HUN"]
[SourceTitle "playchess.com"]
[Source "ChessBase"]
[SourceQuality "1"]
[TimeControl "40/5400+30:1800+30"]

1. g3 {[%emt 0:01:02]} Nf6 {[%emt 0:23:23]} 2. Bg2 {[%emt 0:00:06]} g6 {[%emt 0:01:35]} 3. b4 {[%emt 0:00:28]} Bg7 {[%emt 0:00:19]} 4. Bb2 {[%emt 0:00:04]} O-O {[%emt 0:00:23]} 5. d3 {[%emt 0:03:20]} d5 {[%emt 0:07:27]} 6. Nd2 {[%emt 0:00:13]} Be6 {[%emt 0:07:42]} 7. Ngf3 {[%emt 0:00:45]} Qc8 {[%emt 0:02:07]} 8. h4 {[%emt 0:00:08]} h5 {[%emt 0:00:50]} 9. Ng5 {[%emt 0:00:16]} Bg4 {[%emt 0:05:17]} 10. c4 {[%emt 0:00:08]} c6 {[%emt 0:00:40]} 11. Rc1 {[%emt 0:00:05]} dxc4 {[%emt 0:01:09]} 12. Nxc4 {[%emt 0:00:08]} Nh7 {[%emt 0:08:18]} 13. Bxg7 {[%emt 0:00:44]} Kxg7 {[%emt 0:01:20]} 14. Nf3 {[%emt 0:00:25]} Nd7 {[%emt 0:05:21]} 15. b5 {[%emt 0:01:21]} c5 {[%emt 0:10:40]} 16. d4 {[%emt 0:00:09]} Qd8 {[%emt 0:04:28]} 17. O-O {[%emt 0:08:38]} Rc8 {[%emt 0:01:18]} 18. Qa4 {[%emt 0:01:22]} cxd4 {[%emt 0:09:22]} 19. Qxa7 {[%emt 0:00:07]} Be6 {[%emt 0:01:14]} 20. Qxd4+ {[%emt 0:00:14]} Ndf6 {[%emt 0:01:00]} 21. Qxd8 {[%emt 0:01:51]} Rfxd8 {[%emt 0:00:10]} 22. Na5 {[%emt 0:03:37]} Bxa2 {[%emt 0:02:33]} 23. Nxb7 {[%emt 0:00:27]} Rxc1 {[%emt 0:00:50]} 24. Nxd8 {[%emt 0:00:05]} Rc8 {[%emt 0:00:57]} 25. Nc6 {[%emt 0:00:13]} Bc4 {[%emt 0:00:16]} 26. Nfd4 {[%emt 0:00:39]} Nd7 {[%emt 0:00:49]} 27. Nxe7 {[%emt 0:02:23]} Re8 {[%emt 0:00:26]} 28. Nd5 {[%emt 0:00:18]} Re5 {[%emt 0:01:23]} 29. Ne3 {[%emt 0:00:58]} Bxb5 {[%emt 0:00:16]} 30. Nxb5 {[%emt 0:00:08]} Rxb5 {[%emt 0:00:08]} 31. Bc6 {[%emt 0:00:05]} 1-0

[Event "Vezerkepzo FM Christmas 2023"]
[Site "Budapest"]
[Date "2023.12.28"]
[Round "3.1"]
[White "Anjali R. Sagar"]
[Black "Manukonda Arun"]
[Result "0-1"]
[ECO "C71"]
[WhiteElo "1559"]
[BlackElo "2085"]
[Annotator "NA"]
[PlyCount "70"]
[EventDate "2023.12.25"]
[EventType "tourn"]
[EventCountry "HUN"]
[SourceTitle "playchess.com"]
[Source "ChessBase"]
[SourceQuality "1"]
[TimeControl "40/5400+30:1800+30"]

1. e4 {[%emt 0:00:05]} e5 {[%emt 0:15:36]} 2. Nf3 {[%emt 0:00:11]} Nc6 {[%emt 0:00:10]} 3. Bb5 {[%emt 0:00:07]} a6 {[%emt 0:00:03]} 4. Ba4 {[%emt 0:00:30]} d6 {[%emt 0:01:17]} 5. d3 {[%emt 0:00:57]} b5 {[%emt 0:02:34]} 6. Bb3 {[%emt 0:00:16]} Na5 {[%emt 0:00:16]} 7. c3 {[%emt 0:01:26]} Nxb3 {[%emt 0:00:44]} 8. Qxb3 {[%emt 0:00:16]} Be6 {[%emt 0:00:24]} 9. Qc2 {[%emt 0:00:51]} Be7 {[%emt 0:03:53]} 10. Nbd2 {[%emt 0:01:58]} f5 {[%emt 0:02:14]} 11. d4 {[%emt 0:02:35]} fxe4 {[%emt 0:02:04]} 12. Qxe4 {[%emt 0:00:51]} Nf6 {[%emt 0:00:17]} 13. Qe2 {[%emt 0:00:28]} O-O {[%emt 0:01:51]} 14. dxe5 {[%emt 0:02:56]} Nd5 {[%emt 0:01:21]} 15. Ne4 {[%emt 0:08:11]} Bg4 {[%emt 0:08:33]} 16. exd6 {[%emt 0:06:02]} cxd6 {[%emt 0:13:01]} 17. Qd3 {[%emt 0:03:56]} Nb6 {[%emt 0:03:49]} 18. Nd4 {[%emt 0:21:03]} d5 {[%emt 0:02:36]} 19. Ng3 {[%emt 0:01:48]} Bd6 {[%emt 0:02:58]} 20. O-O {[%emt 0:01:07]} Nc4 {[%emt 0:00:37]} 21. h3 {[%emt 0:12:29]} Ne5 {[%emt 0:01:26]} 22. Qc2 {[%emt 0:03:06]} Bd7 {[%emt 0:03:19]} 23. Bd2 {[%emt 0:11:23]} Qf6 {[%emt 0:03:32]} 24. Rad1 {[%emt 0:02:32]} Rac8 {[%emt 0:01:12]} 25. Qb1 {[%emt 0:04:07]} Nc4 {[%emt 0:02:26]} 26. Bc1 {[%emt 0:00:44]} Rce8 {[%emt 0:04:47]} 27. Qd3 {[%emt 0:01:45]} Ne5 {[%emt 0:01:24]} 28. Qc2 {[%emt 0:00:29]} Ng6 {[%emt 0:03:26]} 29. Nf3 {[%emt 0:01:05]} Bxh3 {[%emt 0:13:54]} 30. Ng5 {[%emt 0:01:01]} Bg4 {[%emt 0:03:07]} 31. f3 {[%emt 0:04:41]} Bxg3 {[%emt 0:01:42]} 32. fxg4 {[%emt 0:00:04]} Qb6+ {[%emt 0:00:12]} 33. Kh1 {[%emt 0:00:26]} Bb8 {[%emt 0:00:34]} 34. Qd3 {[%emt 0:01:03]} Qd6 {[%emt 0:00:51]} 35. Nf3 {[%emt 0:02:29]} Rxf3 {[%emt 0:00:08]} 0-1

[Event "Vezerkepzo FM Christmas 2023"]
[Site "Budapest"]
[Date "2023.12.28"]
[Round "3.2"]
[White "Sagar Siya"]
[Black "Varga, Csaba Zoltan"]
[Result "0-1"]
[ECO "B00"]
[WhiteElo "1537"]
[BlackElo "2201"]
[Annotator "ChessBase"]
[PlyCount "84"]
[EventDate "2023.12.25"]
[EventType "tourn"]
[EventCountry "HUN"]
[SourceTitle "playchess.com"]
[Source "ChessBase"]
[SourceQuality "1"]
[TimeControl "40/5400+30:1800+30"]

1. e4 {[%emt 0:00:03]} Nc6 {[%emt 0:04:46]} 2. d4 {[%emt 0:00:13]} e5 {[%emt 0:00:05]} 3. dxe5 {[%emt 0:00:07]} Nxe5 {[%emt 0:00:08]} 4. Nc3 {[%emt 0:00:21]} Bb4 {[%emt 0:00:15]} 5. Qd4 {[%emt 0:01:02]} Qe7 {[%emt 0:00:21]} 6. Be3 {[%emt 0:05:37]} Nf6 {[%emt 0:02:05]} 7. f3 {[%emt 0:01:52]} Nc6 {[%emt 0:01:38]} 8. Qd3 {[%emt 0:03:17]} d5 {[%emt 0:00:06]} 9. O-O-O {[%emt 0:01:57]} Ne5 {[%emt 0:01:18]} 10. Qd2 {[%emt 0:06:04]} O-O {[%emt 0:04:47]} 11. Bg5 {[%emt 0:04:11]} dxe4 {[%emt 0:01:17]} 12. fxe4 {[%emt 0:01:20]} Bg4 {[%emt 0:00:13]} 13. Be2 {[%emt 0:01:32]} Rad8 {[%emt 0:00:07]} 14. Qe3 {[%emt 0:03:49]} Rxd1+ {[%emt 0:00:49]} 15. Nxd1 {[%emt 0:01:17]} Rd8 {[%emt 0:00:11]} 16. Qb3 {[%emt 0:02:04]} Qd6 {[%emt 0:01:22]} 17. Nf3 {[%emt 0:01:46]} Bxf3 {[%emt 0:00:45]} 18. Bxf3 {[%emt 0:03:04]} Bd2+ {[%emt 0:00:59]} 19. Bxd2 {[%emt 0:00:42]} Qxd2+ {[%emt 0:00:05]} 20. Kb1 {[%emt 0:00:20]} Nxe4 {[%emt 0:00:19]} 21. a3 {[%emt 0:04:16]} Nxf3 {[%emt 0:02:48]} 22. Qxf3 {[%emt 0:01:13]} Qd4 {[%emt 0:00:35]} 23. Kc1 {[%emt 0:02:31]} Qc4 {[%emt 0:02:25]} 24. Nc3 {[%emt 0:03:03]} Nxc3 {[%emt 0:10:24]} 25. Qxc3 {[%emt 0:00:10]} Qxc3 {[%emt 0:00:46]} 26. bxc3 {[%emt 0:00:07]} f5 {[%emt 0:00:29]} 27. Rf1 {[%emt 0:00:45]} g6 {[%emt 0:00:18]} 28. Rf4 {[%emt 0:00:28]} Kf7 {[%emt 0:00:25]} 29. Ra4 {[%emt 0:02:24]} a6 {[%emt 0:00:05]} 30. Rc4 {[%emt 0:00:49]} Rd7 {[%emt 0:00:06]} 31. a4 {[%emt 0:03:09]} Ke6 {[%emt 0:00:29]} 32. g3 {[%emt 0:02:30]} Ke5 {[%emt 0:00:31]} 33. Rb4 {[%emt 0:02:05]} c6 {[%emt 0:01:12]} 34. a5 {[%emt 0:00:48]} g5 {[%emt 0:00:13]} 35. h4 {[%emt 0:01:54]} h6 {[%emt 0:00:05]} 36. hxg5 {[%emt 0:01:29]} hxg5 {[%emt 0:00:06]} 37. c4 {[%emt 0:00:27]} f4 {[%emt 0:00:37]} 38. Rb3 {[%emt 0:00:46]} g4 {[%emt 0:01:05]} 39. gxf4+ {[%emt 0:00:30]} Kxf4 {[%emt 0:00:05]} 40. Rb1 {[%emt 0:00:29]} g3 {[%emt 0:00:07]} 41. Kb2 {[%emt 0:30:05]} g2 {[%emt 0:30:04]} 42. Rg1 {[%emt 0:00:10]} Kf3 {[%emt 0:00:05]} 0-1

[Event "Vezerkepzo FM Christmas 2023"]
[Site "Budapest"]
[Date "2023.12.28"]
[Round "3.3"]
[White "Kozma, Edit"]
[Black "Kahn, Evarth"]
[Result "0-1"]
[ECO "B51"]
[WhiteElo "1754"]
[BlackElo "1972"]
[Annotator "NA"]
[PlyCount "70"]
[EventDate "2023.12.25"]
[EventType "tourn"]
[EventCountry "HUN"]
[SourceTitle "playchess.com"]
[Source "ChessBase"]
[SourceQuality "1"]
[TimeControl "40/5400+30:1800+30"]

1. e4 c5 {[%emt 0:00:30]} 2. Nf3 {[%emt 0:01:00]} d6 {[%emt 0:00:30]} 3. Bb5+ {[%emt 0:00:30]} Nc6 {[%emt 0:00:30]} 4. O-O {[%emt 0:00:30]} Bd7 {[%emt 0:18:11]} 5. c3 {[%emt 0:01:58]} Nf6 {[%emt 0:08:19]} 6. Re1 {[%emt 0:00:32]} e6 {[%emt 0:01:29]} 7. d4 {[%emt 0:00:50]} Be7 {[%emt 0:01:29]} 8. Bf4 {[%emt 0:10:47]} Qb6 {[%emt 0:07:04]} 9. Na3 {[%emt 0:05:20]} cxd4 {[%emt 0:03:38]} 10. cxd4 {[%emt 0:03:36]} d5 {[%emt 0:01:25]} 11. Bxc6 {[%emt 0:12:59]} Bxc6 {[%emt 0:02:14]} 12. exd5 {[%emt 0:13:53]} Bxd5 {[%emt 0:00:52]} 13. Qa4+ {[%emt 0:06:35]} Bc6 {[%emt 0:03:02]} 14. Qb3 {[%emt 0:01:14]} Qxb3 {[%emt 0:00:26]} 15. axb3 {[%emt 0:00:06]} Bxf3 {[%emt 0:00:08]} 16. gxf3 {[%emt 0:00:05]} Nd5 {[%emt 0:00:16]} 17. Be5 {[%emt 0:01:05]} Kd7 {[%emt 0:04:00]} 18. Nb5 {[%emt 0:05:13]} f6 {[%emt 0:01:37]} 19. Bg3 {[%emt 0:00:23]} h5 {[%emt 0:00:57]} 20. h3 {[%emt 0:00:44]} h4 {[%emt 0:00:18]} 21. Bh2 {[%emt 0:00:05]} a6 {[%emt 0:00:35]} 22. Nc3 {[%emt 0:00:29]} Rh5 {[%emt 0:01:16]} 23. Ne4 {[%emt 0:04:47]} Nb4 {[%emt 0:03:14]} 24. Rec1 {[%emt 0:05:57]} Nc6 {[%emt 0:00:35]} 25. Nc5+ {[%emt 0:01:02]} Bxc5 {[%emt 0:00:13]} 26. dxc5 {[%emt 0:00:13]} e5 {[%emt 0:00:58]} 27. Rd1+ {[%emt 0:05:30]} Ke7 {[%emt 0:00:22]} 28. f4 {[%emt 0:00:49]} e4 {[%emt 0:00:55]} 29. Ra4 {[%emt 0:11:45]} f5 {[%emt 0:01:27]} 30. f3 {[%emt 0:01:34]} exf3 {[%emt 0:00:03]} 31. Kf2 {[%emt 0:01:06]} Rhh8 {[%emt 0:00:38]} 32. Kxf3 {[%emt 0:01:25]} Rhd8 {[%emt 0:00:08]} 33. Re1+ {[%emt 0:02:25]} Kf7 {[%emt 0:00:11]} 34. Ke3 {[%emt 0:01:50]} Rd5 {[%emt 0:00:36]} 35. Rc4 {[%emt 0:00:20]} Re8+ {[%emt 0:00:14]} 0-1

[Event "Vezerkepzo FM Christmas 2023"]
[Site "Budapest"]
[Date "2023.12.29"]
[Round "4.1"]
[White "Varga, Csaba Zoltan"]
[Black "Anjali R. Sagar"]
[Result "1-0"]
[ECO "A00"]
[WhiteElo "2201"]
[BlackElo "1559"]
[Annotator "ChessBase"]
[PlyCount "115"]
[EventDate "2023.12.25"]
[EventType "tourn"]
[EventCountry "HUN"]
[SourceTitle "playchess.com"]
[Source "ChessBase"]
[SourceQuality "1"]
[TimeControl "40/5400+30:1800+30"]

1. b4 {[%emt 0:00:04]} a5 {[%emt 0:00:12]} 2. bxa5 {[%emt 0:00:09]} Rxa5 {[%emt 0:00:26]} 3. Bb2 {[%emt 0:00:13]} d6 {[%emt 0:00:43]} 4. Na3 {[%emt 0:03:28]} Be6 {[%emt 0:02:11]} 5. e3 {[%emt 0:02:18]} Nf6 {[%emt 0:00:57]} 6. Nf3 {[%emt 0:00:39]} Nc6 {[%emt 0:01:37]} 7. Nb5 {[%emt 0:01:20]} Rxa2 {[%emt 0:02:12]} 8. Rxa2 {[%emt 0:00:06]} Bxa2 {[%emt 0:00:19]} 9. c4 {[%emt 0:00:04]} d5 {[%emt 0:03:12]} 10. Qa4 {[%emt 0:00:52]} Bxc4 {[%emt 0:01:04]} 11. Bxc4 {[%emt 0:00:19]} dxc4 {[%emt 0:00:26]} 12. Ne5 {[%emt 0:00:33]} e6 {[%emt 0:02:52]} 13. Nxc6 {[%emt 0:02:42]} bxc6 {[%emt 0:01:27]} 14. Bxf6 {[%emt 0:00:27]} gxf6 {[%emt 0:01:11]} 15. Nd4 {[%emt 0:00:08]} Qd6 {[%emt 0:06:53]} 16. Nxc6 {[%emt 0:02:18]} Qa3 {[%emt 0:02:28]} 17. Qb5 {[%emt 0:00:09]} Qb3 {[%emt 0:00:43]} 18. Nb4+ {[%emt 0:01:09]} Kd8 {[%emt 0:01:56]} 19. Nc6+ {[%emt 0:00:04]} Ke8 {[%emt 0:00:26]} 20. Qxb3 {[%emt 0:06:12]} cxb3 {[%emt 0:00:24]} 21. Ke2 {[%emt 0:00:03]} Rg8 {[%emt 0:09:09]} 22. g3 {[%emt 0:00:16]} Rg5 {[%emt 0:11:21]} 23. Rb1 {[%emt 0:00:06]} Rc5 {[%emt 0:03:25]} 24. Nd4 {[%emt 0:00:11]} e5 {[%emt 0:01:58]} 25. Nxb3 {[%emt 0:00:06]} Rb5 {[%emt 0:00:20]} 26. d3 {[%emt 0:00:10]} Kd7 {[%emt 0:01:09]} 27. g4 {[%emt 0:00:44]} Ba3 {[%emt 0:06:02]} 28. Kd1 {[%emt 0:02:09]} Kd6 {[%emt 0:04:16]} 29. Kc2 {[%emt 0:12:39]} Rb6 {[%emt 0:04:16]} 30. Nd2 {[%emt 0:03:23]} Rxb1 {[%emt 0:01:44]} 31. Kxb1 {[%emt 0:00:05]} Bb4 {[%emt 0:01:35]} 32. Nc4+ {[%emt 0:01:36]} Kd5 {[%emt 0:03:19]} 33. f3 {[%emt 0:00:05]} Ke6 {[%emt 0:04:35]} 34. e4 {[%emt 0:00:07]} Bc5 {[%emt 0:03:12]} 35. Kc2 {[%emt 0:00:07]} Ke7 {[%emt 0:01:19]} 36. h4 {[%emt 0:01:48]} Kf8 {[%emt 0:01:06]} 37. Kd2 {[%emt 0:01:20]} Kg7 {[%emt 0:01:27]} 38. Ke2 {[%emt 0:00:52]} Bd4 {[%emt 0:04:11]} 39. Nd2 {[%emt 0:01:14]} Bg1 {[%emt 0:02:26]} 40. Nf1 {[%emt 0:00:06]} Bb6 {[%emt 0:02:17]} 41. Ng3 {[%emt 0:30:06]} Bc5 {[%emt 0:31:24]} 42. Kd2 {[%emt 0:00:09]} Kg6 {[%emt 0:02:05]} 43. Nf5 {[%emt 0:00:26]} Bb4+ {[%emt 0:03:59]} 44. Kc2 {[%emt 0:00:06]} Be1 {[%emt 0:00:00]} 45. Kb3 {[%emt 0:00:00]} Bf2 {[%emt 0:00:00]} 46. Kc4 {[%emt 0:00:00]} Be1 {[%emt 0:00:00]} 47. Kd5 {[%emt 0:00:00]} Bf2 {[%emt 0:00:00]} 48. Kc6 {[%emt 0:00:00]} Bb6 {[%emt 0:00:00]} 49. Kd7 {[%emt 0:00:00]} Ba5 {[%emt 0:00:00]} 50. Ke8 {[%emt 0:00:00]} Be1 {[%emt 0:00:00]} 51. Kf8 {[%emt 0:00:00]} h5 {[%emt 0:00:00]} 52. gxh5+ {[%emt 0:00:00]} Kxh5 {[%emt 0:00:00]} 53. Kxf7 {[%emt 0:00:00]} Bxh4 {[%emt 0:00:00]} 54. Nxh4 {[%emt 0:00:00]} Kxh4 {[%emt 0:00:00]} 55. Kxf6 {[%emt 0:00:00]} Kg3 {[%emt 0:00:00]} 56. Kxe5 {[%emt 0:00:00]} Kxf3 {[%emt 0:00:00]} 57. Kd5 {[%emt 0:00:00]} Kf4 {[%emt 0:00:00]} 58. Kc6 {[%emt 0:00:00]} 1-0